{"text_format":"2","workbook":"xlsx","n_sheets":2,"sheets":["Rental Property Schedule","List"],"not_rendered":{"charts":0,"images":1,"macros":0,"external_links":0,"defined_names":0,"comments":0,"pivot_tables":0},"unopened":[],"bounds":{"document_bytes":16777216,"sheet_cells":100000,"run_cost":"one","rows_first":2000,"rows_last":500,"rows_between":2000,"halvings":0,"cell_chars":16384,"cell_head_chars":4096},"cells_cut":0,"cells_raw":0,"read":"whole","date_system":"1900"}

{"sheet":"Rental Property Schedule","index":0,"n_rows":41,"n_cols":15,"rows_kept":41,"cut":false,"hidden":false,"merged":[[0,0,0,14],[1,0,1,15],[2,0,2,15],[3,0,3,14],[4,0,4,14]]}
[]
["13-000-RBIZZ"]
["team@rbizz.com.au"]
["RENTAL SCHEDULE"]
["IMPORTANT - Please ensure all transactions fall within the first and last date of the financial year."]
[]
[null,null,null,"Property Address"]
[null,null,null,"Date property first available for rent:"]
[null,null,null,"Number of weeks available for rent in the year:"]
[null,null,null,"Your ownership percentage:"]
[null,null,null,"Financial Year"]
[]
[]
["Category","Account","Jul","Aug","Sep","Oct","Nov","Dec","Jan","Feb","Mar","Apr","May","Jun","Total"]
["Rental","Rental Income",{"$nulls":12},{"$f":"SUM(C15:N15)","v":0}]
["Rental","Other rental related income",{"$nulls":12},0]
[]
[null,"Total Income",{"$f":"SUM(C15:C17)","v":0},0,0,0,0,0,0,0,0,0,0,0,0]
[]
["Rental","Advertising for tenants",{"$nulls":12},0]
["Rental","Body corporate",{"$nulls":12},0]
["Rental","Borrowing expenses",{"$nulls":12},0]
["Rental","Cleaning",{"$nulls":12},0]
["Rental","Council rates",{"$nulls":12},0]
["Rental","Capital allowances",{"$nulls":12},0]
["Rental","Gardening/lawn mowing",{"$nulls":12},0]
["Rental","Insurance",{"$nulls":12},0]
["Rental","Interest on loans",{"$nulls":12},0]
["Rental","Land tax",{"$nulls":12},0]
["Rental","Legal fees",{"$nulls":12},0]
["Rental","Pest control",{"$nulls":12},0]
["Rental","Property agent fees/commission",{"$nulls":12},0]
["Rental","Repairs and maintenance",{"$nulls":12},0]
["Rental","Capital works deductions",{"$nulls":12},0]
["Rental","Stationery, telephone and postage",{"$nulls":12},0]
["Rental","Travel expenses",{"$nulls":12},0]
["Rental","Water charges",{"$nulls":12},0]
["Rental","Sundry rental expenses",{"$nulls":12},0]
["Rental","Other expenses",{"$nulls":12},0]
[]
[null,"Total Expenses",{"$f":"SUM(C20:C40)","v":0},0,0,0,0,0,0,0,0,0,0,0,0]

{"sheet":"List","index":1,"n_rows":23,"n_cols":1,"rows_kept":23,"cut":false,"hidden":true,"merged":[]}
["Rental Income"]
["Other rental related income"]
["Advertising for tenants"]
["Body corporate"]
["Borrowing expenses"]
["Cleaning"]
["Council rates"]
["Capital allowances"]
["Gardening/lawn mowing"]
["Insurance"]
["Interest on loans"]
["Land tax"]
["Legal fees"]
["Pest control"]
["Property agent fees/commission"]
["Repairs and maintenance"]
["Capital works deductions"]
["Stationery, telephone and postage"]
["Travel expenses"]
["Water charges"]
["Sundry rental expenses"]
["New asset purchased"]
["Other expenses"]